Cogmind - Beta 12 @@@ ROGUE MODE // 2023.11.25 @ 13:34:17 Player: epb Result: Self-destructed Performance ------------- Evolutions (2) 1000 Regions Visited (4) 800 Robots Destroyed (34) 170 Value Destroyed (870) 870 Prototype IDs (0) 0 Alien Tech Used (0) 0 Bonus (179) 179 TOTAL SCORE: 3019 Bonus ------- High Alert Combat Kills 16 Follower Combat Kills 198 Friendly Fire -35 Cogmind --------- Core Integrity 268/550 Matter 278/300 Energy 100/100 System Corruption 0% Temperature Cool (0) Movement Core (200) Ox3 Location -8/Materials Parts ------- > --- POWER (1) -------- (None) > --- PROPULSION (4) --- (None) > --- UTILITY (4) ------ Small Storage Unit > --- WEAPON (2) ------- Rocket Launcher Makeshift Spear > --- INVENTORY (8) ---- Light Deuterium Engine Light Deuterium Engine Nuclear Core Weight Redist. System Improved Signal Interpreter Arc Projector Remote Datajack Peak State ------------ > --- POWER ------------ Light Nuclear Core > --- PROPULSION ------- Hover Unit Improved Hover Unit Improved Hover Unit Airjet > --- UTILITY ---------- Small Storage Unit Improved Sensor Array Advanced ECM Suite Hardened Light Armor Plating > --- WEAPON ----------- Arc Projector Arc Projector > --- INVENTORY -------- Light Deuterium Engine Light Deuterium Engine Nuclear Core Weight Redist. System Improved Signal Interpreter Rocket Launcher Mini Grenade Launcher Makeshift Spear [Rating: 31] Favorites ----------- Power Improved Ion Engine Engine Improved Ion Engine Power Core Light Nuclear Core Propulsion Improved Hover Unit Wheel Compact Wheel Hover Unit Improved Hover Unit Utility Small Storage Unit Device Improved Sensor Array Storage Small Storage Unit Protection Hardened Light Armor Plating Weapon Autogun Energy Gun Particle Gun Ballistic Gun Autogun Launcher Rocket Launcher Piercing Weapon Makeshift Spear Build | -11 -10 -9 -9 -8 ------- Run | Jun Mat Mat Min Mat Slots Evolved 4 | . . 2 . 2 Power . | . . . . . Propulsion 2 | . . 2 . . Utility 2 | . . . . 2 Weapon . | . . . . . Parts Attached 34 | 6 2 12 4 10 Power 4 | 1 . 2 1 . Engine 3 | 1 . 2 . . Core 1 | . . . 1 . Reactor . | . . . . . Propulsion 12 | 2 . 5 3 2 Treads . | . . . . . Leg . | . . . . . Wheel 2 | 2 . . . . Hover 10 | . . 5 3 2 Flight . | . . . . . Utility 7 | 1 1 1 . 4 Device 4 | . . . . 4 Storage 1 | 1 . . . . Processor . | . . . . . Hackware . | . . . . . Protection 2 | . 1 1 . . Artifact . | . . . . . Weapon 11 | 2 1 4 . 4 Energy Gun 5 | . 1 2 . 2 Energy Cannon . | . . . . . Ballistic Gun 4 | 2 . 2 . . Ballistic Cannon . | . . . . . Launcher 1 | . . . . 1 Special Weapon . | . . . . . Impact Weapon . | . . . . . Slashing Weapon . | . . . . . Piercing Weapon 1 | . . . . 1 Special Melee Weapon . | . . . . . Unidentified Prototypes . | . . . . . Parts Lost 13 | . . 2 2 9 Power 1 | . . . . 1 Propulsion 8 | . . 2 2 4 Utility 3 | . . . . 3 Weapon 1 | . . . . 1 Highest Loss Streak 7 | . . 1 2 7 To Critical Strikes . | . . . . . Average Slot Usage (%) 90 | . 92 95 94 80 Engine 8 | . 14 11 8 . Core 2 | . . . 2 7 Wheel 5 | . 28 . . . Hover 27 | . . 40 39 23 Device 4 | . . . . 15 Storage 11 | . 14 11 11 9 Protection 9 | . 7 11 11 7 Energy Gun 6 | . 8 2 11 8 Ballistic Gun 14 | . 19 19 11 4 Naked Turns . | . . . . . Heaviest Build 27 | 10 15 23 23 27 Greatest Support 28 | 26 26 28 26 28 Greatest Overweight (x) 4 | . . 1 3 4 Average Overweight (x) . | . . . . . Largest Inventory Capacity 8 | 8 8 8 8 8 Average Capacity 7 | 6 8 8 8 8 Most Carried 8 | 1 8 8 8 8 Average Carried 6 | . 4 7 7 7 Final Capacity 8 | 8 8 8 8 8 Final Carried 8 | 1 8 8 8 7 Class Distribution -------------------- 100% | Mutant Dominant Class ---------------- Mutant | -10/Materials Mutant | -9/Materials Mutant | -9/Mines Mutant | -8/Materials Resources | -11 -10 -9 -9 -8 ----------- Run | Jun Mat Mat Min Mat Matter Collected 983 | 249 29 273 130 302 Remotely . | . . . . . Salvage Created 1133 | . 117 564 66 386 Parts 81 | . 5 48 9 19 Haulers Intercepted . | . . . . . Recyclers Shooed . | . . . . . Parts Field Recycled . | . . . . . Retrieved Matter . | . . . . . Parts Self-Destructed . | . . . . . Prevented . | . . . . . Kills | -11 -10 -9 -9 -8 ------- Run | Jun Mat Mat Min Mat Combat Hostiles Destroyed 22 | . 2 13 2 5 Guns 17 | . 2 13 2 . AOE 5 | . . . . 5 Classes Destroyed 9 | . 2 3 2 2 Worker 2 | . 1 . . 1 Builder 2 | . . . 1 1 Tunneler 1 | . . . 1 . Recycler 2 | . . . . 2 Mechanic 1 | . . . . 1 Watcher 4 | . . 3 . 1 Swarmer 5 | . . 4 1 . Grunt 13 | . 2 5 1 5 Sentry 4 | . . 4 . . Best Kill Streak 7 | . 3 6 2 7 Combat Bots Only 6 | . 2 6 1 5 Max Kills in Single Turn 4 | . 1 1 1 4 Gunslinging . | . . . . . Exploded 3 | . . . . 3 Melee . | . . . . . Uniques/NPCs Destroyed . | . . . . . Combat | -11 -10 -9 -9 -8 -------- Run | Jun Mat Mat Min Mat Damage Taken 1729 | . 157 451 328 793 Core 528 | . 34 80 132 282 Absorbed by Shields . | . . . . . Core Remaining (%) 77 | 100 86 . 47 . Volleys Fired 94 | . 15 46 17 16 Largest 2 | . 2 2 2 2 Hottest 110 | . 40 85 88 110 Shots Fired 173 | . 20 92 34 27 Gun 168 | . 20 92 34 22 Cannon . | . . . . . Launcher 5 | . . . . 5 Special . | . . . . . Kinetic 132 | . 20 90 17 5 Thermal 24 | . . 2 17 5 Explosive 5 | . . . . 5 Electromagnetic 12 | . . . . 12 Robot Hit Streak 11 | . 9 11 3 6 Robot Miss Streak 8 | . 2 4 8 4 Penetration Max . | . . . . . Secondary Targets 2 | . 1 . 1 . Max Gunslinging Chain 1 | . 1 . 1 . Shots Hit Robots 107 | . 16 57 11 23 Core Hits 60 | . 6 25 5 24 Critical Kills . | . . . . . Critical Parts Destroyed . | . . . . . Critical Strikes . | . . . . . Melee Attacks 7 | . . . . 7 Impact . | . . . . . Slashing . | . . . . . Piercing 7 | . . . . 7 Sneak Attacks . | . . . . . Combat Hostiles . | . . . . . Follow-up Attacks . | . . . . . Damage Inflicted 2226 | . 134 833 195 1064 Guns 1374 | . 132 833 195 214 Cannons . | . . . . . Explosions 657 | . . . . 657 Melee 193 | . . . . 193 Ramming 2 | . 2 . . . Kinetic 1106 | . 132 820 100 54 Thermal 169 | . . 13 95 61 Explosive 657 | . . . . 657 Electromagnetic 99 | . . . . 99 Impact . | . . . . . Slashing . | . . . . . Piercing 193 | . . . . 193 Highest Corruption . | . . . . . Average Corruption . | . . . . . Corruption Purged . | . . . . . Corruption Blocked . | . . . . . Overload Shots . | . . . . . Overflow Damage 9 | . . . . 9 Projectiles . | . . . . . Explosions 6 | . . . . 6 Melee 3 | . . . . 3 Knockbacks . | . . . . . Impact . | . . . . . Kinetic . | . . . . . Secondary . | . . . . . Self-Inflicted Damage 41 | . 1 . . 40 Shots 1 | . . . . 1 Rammed 1 | . 1 . . . Targets Rammed 1 | . 1 . . . Kicked . | . . . . . Crushed . | . . . . . Highest Temperature 591 | . 24 235 591 316 Average Temperature 129 | . 9 71 218 113 Received Heat Transfer 750 | . 90 135 93 432 Effects 10 | . . . 8 2 Shutdowns 2 | . . . 2 . Energy Bleed 1 | . . . 1 . Interference 3 | . . . 1 2 Short Circuit 1 | . . . 1 . Damage (minor) 1 | . . . 1 . Damage (core) 2 | . . . 2 . Siege Activations . | . . . . . Robots Corrupted . | . . . . . Combat Hostiles . | . . . . . Parts Fried . | . . . . . Impact Corruptions . | . . . . . Robots Melted . | . . . . . Combat Hostiles . | . . . . . Parts Melted . | . . . . . Heat Transferred 407 | . . 37 222 148 Parts Sabotaged . | . . . . . Parts Stolen . | . . . . . Parts Stripped . | . . . . . Power Chain Reactions . | . . . . . Missiles Intercepted . | . . . . . Alert | -11 -10 -9 -9 -8 ------- Run | Jun Mat Mat Min Mat Peak Influence 557 | . 55 557 393 386 Initial 217 | . . 22 217 152 Average 232 | . 39 295 335 264 Maximum Alert Level 2 | . . 2 1 1 Low Security (%) 34 | 100 100 30 . 5 Level 1 52 | . . 31 100 95 Level 2 12 | . . 38 . . Level 3 . | . . . . . Level 4 . | . . . . . Level 5 . | . . . . . High Security . | . . . . . Max Security . | . . . . . Squads Dispatched 4 | . . 2 . 2 Investigation 1 | . . 1 . . Extermination . | . . . . . Reinforcement 3 | . . 1 . 2 Assault . | . . . . . Garrison . | . . . . . Intercept . | . . . . . Searches Triggered . | . . . . . Construction Impeded . | . . . . . Haulers Reinforced . | . . . . . Active Scanning Responses . | . . . . . Cargo Convoy Interrupts . | . . . . . Stealth | -11 -10 -9 -9 -8 --------- Run | Jun Mat Mat Min Mat Distress Signals 3 | . . 1 . 2 Communications Jammed . | . . . . . Distress Signals . | . . . . . Times Spotted 49 | . 2 28 5 14 Peak Tracking Total 7 | . 2 7 2 6 Tactical Retreats 4 | . . 3 1 . Traps | -11 -10 -9 -9 -8 ------- Run | Jun Mat Mat Min Mat Traps Triggered 1 | . . 1 . . Indirectly . | . . . . . Trap Hack Attempts . | . . . . . Triggered . | . . . . . Disarmed . | . . . . . Reprogrammed . | . . . . . Reused . | . . . . . Traps Extracted . | . . . . . Installed . | . . . . . Triggered . | . . . . . Machines | -11 -10 -9 -9 -8 ---------- Run | Jun Mat Mat Min Mat Machines Disabled . | . . . . . Max in Single Turn . | . . . . . Machines Repaired . | . . . . . Machines Sabotaged . | . . . . . Overloaded Fab Kills . | . . . . . Hacking | -11 -10 -9 -9 -8 --------- Run | Jun Mat Mat Min Mat Machines Accessed . | . . . . . Terminals . | . . . . . Fabricators . | . . . . . Repair Stations . | . . . . . Recycling Units . | . . . . . Scanalyzers . | . . . . . Garrison Access . | . . . . . Total Hacks . | . . . . . Successful . | . . . . . Failed . | . . . . . Catastrophic . | . . . . . Database Lockouts . | . . . . . Manual . | . . . . . Terminals . | . . . . . Fabricators . | . . . . . Repair Stations . | . . . . . Recycling Units . | . . . . . Scanalyzers . | . . . . . Garrison Access . | . . . . . Terminal Hacks . | . . . . . Fabricator Hacks . | . . . . . Repair Station Hacks . | . . . . . Recycling Unit Hacks . | . . . . . Scanalyzer . | . . . . . Garrison Access Hacks . | . . . . . Unauthorized Hacks . | . . . . . Terminals . | . . . . . Fabricators . | . . . . . Repair Stations . | . . . . . Recycling Units . | . . . . . Scanalyzers . | . . . . . Garrison Access . | . . . . . Data Cores Recovered . | . . . . . Used . | . . . . . Hacking Detections . | . . . . . Full Trace Events . | . . . . . Feedback Events . | . . . . . Feedback Blocked . | . . . . . Robot Schematics Acquired . | . . . . . Robots Built . | . . . . . Authchips . | . . . . . Time . | . . . . . Total Robot Build Rating . | . . . . . Part Schematics Acquired . | . . . . . Parts Built . | . . . . . Authchips . | . . . . . Time . | . . . . . Total Part Build Rating . | . . . . . Parts Repaired . | . . . . . Time . | . . . . . Parts Recycled . | . . . . . Recycled Matter . | . . . . . Retrieved Matter . | . . . . . Retrieved Components . | . . . . . Parts Scanalyzed . | . . . . . Part Schematics Acquired . | . . . . . Parts Damaged . | . . . . . Bothacking | -11 -10 -9 -9 -8 ------------ Run | Jun Mat Mat Min Mat Used RIF Installer . | . . . . . Robots Hacked . | . . . . . Non-combat . | . . . . . Combat . | . . . . . Robot Hacks Applied . | . . . . . Relay Couplers Released . | . . . . . Fabnet Peak Effective % . | . . . . . Robots Rewired . | . . . . . Allies Hacked . | . . . . . Hacks Repelled . | . . . . . Allies | -11 -10 -9 -9 -8 -------- Run | Jun Mat Mat Min Mat Total Allies 2 | . . . 2 . Largest Group 2 | . . . 2 2 Highest-Rated Group 48 | . . . 48 48 Highest-Rated Ally 31 | . . . 31 31 Total Orders . | . . . . . Ally Attacks 24 | . . . 8 16 Total Damage 338 | . . . 106 232 Kills 8 | . . . 4 4 Allies Corrupted . | . . . . . Allies Melted . | . . . . . Intel | -11 -10 -9 -9 -8 ------- Run | Jun Mat Mat Min Mat Robot Analysis Total . | . . . . . Derelict Logs Recovered . | . . . . . Drone Launches . | . . . . . Drone Recoveries . | . . . . . Exploration | -11 -10 -9 -9 -8 ------------- Run | Jun Mat Mat Min Mat Turns Passed 1176 | 48 231 384 213 300 Spaces Moved 1116 | 43 209 350 249 265 Core 21 | 3 . . . 18 Treads . | . . . . . Legs . | . . . . . Wheels 249 | 40 209 . . . Hover 846 | . . 350 249 247 Flight . | . . . . . Fastest Speed 48 | 50 90 48 48 48 Average Speed 73 | 89 90 63 62 82 Slowest Speed 250 | 100 90 112 240 250 Overloaded Moves . | . . . . . Propulsion Burnouts . | . . . . . Robots Hopped . | . . . . . Cave-ins Triggered . | . . . . . Exploration Rate (%) 30 | 3 40 36 47 28 Regions Visited 4 Branch Regions 1 Pre-discovered Areas . | . . . . . Known Exits Taken . | . . . . . Unknown Exits Taken 4 | 1 1 1 1 . Scrap Searched . | . . . . . Spaces Dug . | . . . . . Terrain Destroyed 45 | . . . . 45 Melee . | . . . . . Projectile . | . . . . . AOE 45 | . . . . 45 Terrain Rammed . | . . . . . Walls Destroyed . | . . . . . Machines Disabled . | . . . . . Actions | -11 -10 -9 -9 -8 --------- Run | Jun Mat Mat Min Mat Total 1315 | 49 235 442 274 315 Wait 14 | . . 12 2 . Move 1112 | 42 208 349 248 265 Hop . | . . . . . Pick Up 29 | 1 8 11 2 7 Fast Attach 12 | 6 1 2 . 3 Attach 10 | . . 4 3 3 Detach . | . . . . . Swap 12 | . 1 6 1 4 Drop 24 | . 1 12 1 10 Fire 94 | . 15 46 17 16 Melee 7 | . . . . 7 Ram 1 | . 1 . . . Kick . | . . . . . Crush . | . . . . . Escape Stasis . | . . . . . Rewire . | . . . . . Trap . | . . . . . Miscellaneous . | . . . . . Route ------- -11/Junkyard -10/Materials -9/Materials -9/Mines -8/Materials History --------- Turn | Location | Event 30 | -11/Junkyard | Discovered new exit (range 16) 49 | -11/Junkyard | Entered Materials 262 | -10/Materials | Discovered new exit (range 16) 280 | -10/Materials | Entered another Materials area 280 | -9/Materials | Evolved 2 slots: Propulsion x2 307 | -9/Materials | Build established: Mutant 655 | -9/Materials | Discovered new exit (range 9) 664 | -9/Materials | Entered Mines 707 | -9/Mines | A weapon hastily lodged in a ceiling crevice suddenly fell to the ground 777 | -9/Mines | Discovered new exit (range 12) 786 | -9/Mines | Received a Rocket Launcher from a helpful Derelict 811 | -9/Mines | Core integrity fell below 50% 877 | -9/Mines | Entered Materials 877 | -8/Materials | Accompanied by 2 allies 877 | -8/Materials | Evolved 2 slots: Utility x2 882 | -8/Materials | Led the pair of lost Derelicts to an unsafe place 1152 | -8/Materials | Core integrity fell below 50% 1177 | -8/Materials | Self-destructed Last Messages --------------- 01153_ R-06 Scavenger destroyed. 01155_ Purification Channel disabled. 01156_ U-05 Engineer lays Concrete. 01157_ Destroyed Backup Propulsion I. 01157_ U-05 Engineer lays Concrete. 01157_ R-06 Scavenger collects Com. Wheel. 01158_ U-05 Engineer builds a Wall. 01159_ G-50 Soldier destroyed. 01159_ G-47 Trooper destroyed. 01160_ R-06 Scavenger collects Sml. Storage Unit. 01163_ U-05 Engineer lays Concrete. 01163_ R-06 Scavenger collects Aluminum Leg. 01164_ The unstable cave ceiling collapses. 01164_ U-05 Engineer lays Concrete. 01165_ U-05 Engineer builds a Wall. 01165_ Acquired 43 matter. 01169_ U-05 Engineer lays Concrete. 01171_ The unstable cave ceiling collapses. 01171_ U-05 Engineer builds a Wall. 01176_ U-05 Engineer lays Concrete. Map ----- +----------------------------------------------------+ | ?????????????????????????????????????????????????? | | ?????????????????????????????????????????????????? | | ?????????????????????????????????????????????????? | | ?????????????????????????????????????????????????? | | ?????????????????????????????????????????????????? | | ?????????????????????????????????????????????????? | | ?????????????????????????????????????????????????? | | ?????????????????????????????????????????????????? | | ?????????????????????????????????????????????????? | | ??????????###########????????????????????????????? | | ??????????# T #????????????????????????????? | | ??????????# #????????????????????????????? | | ???######## #????????????????????????????? | | ???#[] |!!# #????????????????????????????? | | ???#[ ||!!#####+#####????????????????????????????? | | ???# [ #?# #??????????????????????????????? | | ???####[ ### #??????????????????????????????? | | ####??# #??????????????????????????????? | | [!! ] # #??????????###?????????????????? | | [!! + #???####### !##????????????????? | | !!! # #???# !#????????????????? | | ####### ##### !#????????????????? | | # !#????????????????? | | ]] # ############### !#????????????????? | | ] + #?????????????# [[= !##????????????????? | | * # ################ @ #####?????????????????? | | # #* # = ## ## ##????????????? | | # # """# " # #????????????? | | #######!# """# """ # ####### """? | | ??????#=+ """# "" % """? | | ??????#!# # """ [ """? | | ??????# # # "" uu """? | | ??????#*######## """ ## ### ########## | | ??????#=#??????? "" ?###?? ###???????? ! | | ??????#*#???????? """ ??????? ######????????????# | | ??????#!#??????? " ???????# ?????????????????? | | ??????# #??????# ?? ????????]]????????????????? | | #######!#??????##???##??????????]]???????????????? | | !!!!!!#=#????????????????????????]#??????????????? | | !!!!!!# #??####??????????????????????????????????? | | # #? #?????????????????????????????????? | | # #?""" #?????????????????????????????????? | | # """ #?????????????????????????????????? | | ####### # """ !#?????????????????????????????????? | | #####?# / #?????????????????????????????????? | | # # ] ! #?????????????????????????????????? | | # ########?????????????????????????????????? | | """" + *%[! #???????????????????????????? | | """" # ########?????????????????????????????????? | | """" # #! * = #?????????????????????????????????? | +----------------------------------------------------+ Best States ------------- Heat Dissipation 31 Energy Generation 14 Energy Capacity 265 Matter Stores 300 Matter Capacity 300 Sight Range 16 Robot Scan Range 15 Terrain Scan Density 10 ECM Strength 2 Armor Coverage 150 Evasion (%) 55 Item Schematics ----------------- None Robot Schematics ------------------ None Fabricated ------------ Nothing Alien Tech Used ----------------- None Achievements -------------- None Challenges ------------ None Game ------ Seed BeamBottomlessGravjet Manual? 0 Play Time 00:19:42 Cumulative 18.8 hours Start 2023.11.24 @ 16:17:15 End 2023.11.25 @ 13:34:17 Sessions 3 Manual Loads 0 Difficulty Rogue Special Mode None Game No. 51 Rogue 51 Adventurer 0 Explorer 0 Win Type - Total 0 Types 0/0/0/0/0/0/0/0/0 Lore% 11 Gallery% 24 Achievement% 18 Wizard Run 0 Options --------- ASCII 0 Keyboard 0 Movement Vi Keybinds 0 Fullscreen 2 Font 14/TerminusBold Map View 72x54 Tactical HUD 1 Map Filters NONE Filters NONE Steam X RUN: 4f1d6928-c6a4-4e2a-9386-800bbda53e61